fUST/lending_fUST_20250211
["ID","MTS","AMOUNT","RATE_DAILY","PERIOD"]
[352622785,1739203846565,-754.80410476,0.00011701,2]
[352622786,1739203846575,-151.0,0.0001178,2]
[352622787,1739203846585,-151.0,0.0001178,2]
[352622788,1739203846594,-500.0,0.0001178,2]
[352622789,1739203846604,-486.65402621,0.0001178,2]
[352622790,1739203846614,-500.0,0.0001178,2]
[352622791,1739203846622,-500.0,0.0001178,2]
[352622792,1739203846632,-500.0,0.0001178,2]
[352622793,1739203846641,-500.0,0.0001178,2]
[352622794,1739203846650,-500.0,0.0001178,2]
[352622795,1739203846660,-500.0,0.0001178,2]
[352622796,1739203846670,-500.0,0.0001178,2]
[352622797,1739203846679,-500.0,0.0001178,2]
[352622798,1739203846689,-500.0,0.0001178,2]
[352622799,1739203846699,-500.0,0.0001178,2]
[352622800,1739203846709,-500.0,0.0001178,2]
[352622801,1739203846718,-500.0,0.0001178,2]
[352622802,1739203846728,-500.0,0.0001178,2]
[352622803,1739203846737,-500.0,0.0001178,2]
[352622804,1739203846746,-500.0,0.0001178,2]
[352622805,1739203846756,-500.0,0.0001178,2]
[352622806,1739203846767,-500.0,0.0001178,2]
[352622807,1739203846777,-500.0,0.0001178,2]
[352622808,1739203846786,-500.0,0.0001178,2]
[352622809,1739203846796,-500.0,0.0001178,2]
[352622810,1739203846805,-500.0,0.0001178,2]
[352622811,1739203846814,-500.0,0.0001178,2]
[352622812,1739203846823,-500.0,0.0001178,2]
[352622813,1739203846832,-500.0,0.0001178,2]
[352622814,1739203846841,-500.0,0.0001178,2]
[352622815,1739203846850,-808.36,0.0001178,2]
[352622816,1739203846860,-500.0,0.0001178,2]
[352622817,1739203846869,-500.0,0.0001178,2]
[352622818,1739203846878,-9369.98,0.0001178,2]
[352622819,1739203846887,-500.0,0.0001178,2]
[352622820,1739203846896,-500.0,0.0001178,2]
[352622821,1739203846905,-1295.06,0.0001178,2]
[352622822,1739203846914,-500.0,0.0001178,2]
[352622823,1739203846923,-3349.24,0.0001178,2]
[352622824,1739203846932,-500.0,0.0001178,2]
[352622825,1739203846941,-500.0,0.0001178,2]
[352622826,1739203846951,-500.0,0.0001178,2]
[352622827,1739203846960,-500.0,0.0001178,2]
[352622828,1739203846969,-500.0,0.0001178,2]
[352622829,1739203846978,-500.0,0.0001178,2]
[352622830,1739203846987,-500.0,0.0001178,2]
[352622831,1739203846997,-500.0,0.0001178,2]
[352622832,1739203847006,-279.86,0.0001178,2]
[352622833,1739203847016,-880.25,0.0001178,2]
[352622834,1739203847025,-818.75,0.0001178,2]
[352622835,1739203847034,-2389.8,0.0001178,2]
[352622836,1739203847043,-500.0,0.0001178,2]
[352622837,1739203847053,-500.0,0.0001178,2]
[352622838,1739203847062,-983.98,0.0001178,2]
[352622839,1739203847071,-500.0,0.0001178,2]
[352622840,1739203847080,-500.0,0.0001178,2]
[352622841,1739203847089,-500.0,0.0001178,2]
[352622842,1739203847098,-971.26,0.0001178,2]
[352622843,1739203847108,-3346.58,0.0001178,2]
[352622844,1739203847117,-500.0,0.0001178,2]
[352622845,1739203847126,-500.0,0.0001178,2]
[352622846,1739203847135,-500.0,0.0001178,2]
[352622847,1739203847144,-500.0,0.0001178,2]
[352622848,1739203847153,-500.0,0.0001178,2]
[352622849,1739203847162,-878.2,0.0001178,2]
[352622850,1739203847172,-500.0,0.0001178,2]
[352622851,1739203847275,-754.80410476,0.00011801,2]
[352622852,1739203847286,-754.80410476,0.00011901,2]
[352622853,1739203847297,-500.0,0.00011917,2]
[352622854,1739203847309,-500.0,0.00011917,2]
[352622855,1739203847319,-500.0,0.00011917,2]
[352622856,1739203847328,-500.0,0.00011917,2]
[352622857,1739203847337,-500.0,0.00011917,2]
[352622858,1739203847350,-500.0,0.00011917,2]
[352622859,1739203847360,-500.0,0.00011917,2]
[352622860,1739203847370,-298.74117131,0.00011917,2]
[352622861,1739203847380,-500.0,0.00011917,2]
[352622862,1739203847390,-500.0,0.00011917,2]
[352622863,1739203847400,-500.0,0.00011917,2]
[352622864,1739203847410,-500.0,0.00011917,2]
[352622865,1739203847419,-500.0,0.00011917,2]
[352622866,1739203847429,-500.0,0.00011917,2]
[352622867,1739203847439,-500.0,0.00011917,2]
[352622868,1739203847448,-500.0,0.00011917,2]
[352622869,1739203847458,-555.21709705,0.00011917,2]
[352622870,1739203847467,-500.0,0.00011917,2]
[352622871,1739203847477,-500.0,0.00011917,2]
[352622872,1739203847487,-500.0,0.00011917,2]
[352622873,1739203847496,-500.0,0.00011917,2]
[352622874,1739203847507,-500.0,0.00011917,2]
[352622875,1739203847517,-500.0,0.00011917,2]
[352622876,1739203847527,-500.0,0.00011917,2]
[352622877,1739203847537,-500.0,0.00011917,2]
[352622878,1739203847547,-500.0,0.00011917,2]
[352622879,1739203847557,-808.36,0.00011917,2]
[352622880,1739203847566,-500.0,0.00011917,2]
[352622881,1739203847576,-500.0,0.00011917,2]
[352622882,1739203847585,-9369.98,0.00011917,2]
[352622883,1739203847595,-500.0,0.00011917,2]
[352622884,1739203847605,-500.0,0.00011917,2]
[352622885,1739203847614,-1295.06,0.00011917,2]
[352622886,1739203847624,-500.0,0.00011917,2]
[352622887,1739203847633,-3349.24,0.00011917,2]
[352622888,1739203847643,-649.2,0.00011917,2]
[352622889,1739203847653,-500.0,0.00011917,2]
[352622890,1739203847665,-500.0,0.00011917,2]
[352622891,1739203847676,-500.0,0.00011917,2]
[352622892,1739203847687,-500.0,0.00011917,2]
[352622893,1739203847698,-500.0,0.00011917,2]
[352622894,1739203847709,-500.0,0.00011917,2]
[352622895,1739203847719,-500.0,0.00011917,2]
[352622896,1739203847731,-880.25,0.00011917,2]
[352622897,1739203847742,-818.75,0.00011917,2]
[352622898,1739203847753,-2389.8,0.00011917,2]
[352622899,1739203847765,-500.0,0.00011917,2]
[352622900,1739203847775,-500.0,0.00011917,2]
[352622901,1739203847785,-983.98,0.00011917,2]
[352622902,1739203847795,-500.0,0.00011917,2]
[352622903,1739203847806,-500.0,0.00011917,2]
[352622904,1739203847817,-500.0,0.00011917,2]
[352622905,1739203847827,-971.26,0.00011917,2]
[352622906,1739203847838,-3346.58,0.00011917,2]
[352622907,1739203847849,-500.0,0.00011917,2]
[352622908,1739203847859,-500.0,0.00011917,2]
[352622909,1739203847870,-500.0,0.00011917,2]
[352622910,1739203847881,-500.0,0.00011917,2]
[352622911,1739203847892,-500.0,0.00011917,2]
[352622912,1739203847903,-878.2,0.00011917,2]
[352622913,1739203847913,-500.0,0.0001193,2]
[352622914,1739203847924,-1000.0,0.00011959,2]
[352622915,1739203847934,-500.0,0.00011959,2]
[352622916,1739203847944,-500.0,0.00011959,2]
[352622917,1739203847954,-754.80410476,0.00012001,2]
[352622918,1739203847967,-1000.0,0.00012039,2]
[352622919,1739203847977,-500.0,0.00012054,2]
[352622920,1739203847987,-500.0,0.00012054,2]
[352622921,1739203847997,-500.0,0.00012054,2]
[352622922,1739203848007,-500.0,0.00012054,2]
[352622923,1739203848019,-500.0,0.00012054,2]
[352622924,1739203848030,-500.0,0.00012054,2]
[352622925,1739203848041,-500.0,0.00012054,2]
[352622926,1739203848052,-500.0,0.00012054,2]
[352622927,1739203848063,-500.0,0.00012054,2]
[352622928,1739203848074,-500.0,0.00012054,2]
[352622929,1739203848085,-500.0,0.00012054,2]
[352622930,1739203848097,-500.0,0.00012054,2]
[352622931,1739203848108,-500.0,0.00012054,2]
[352622932,1739203848118,-500.0,0.00012054,2]
[352622933,1739203848128,-500.0,0.00012054,2]
[352622934,1739203848139,-469.03,0.00012054,2]
[352622935,1739203848150,-500.0,0.00012054,2]
[352622936,1739203848160,-500.0,0.00012054,2]
[352622937,1739203848171,-500.0,0.00012054,2]
[352622938,1739203848182,-500.0,0.00012054,2]
[352622939,1739203848193,-500.0,0.00012054,2]
[352622940,1739203848203,-513.76,0.00012054,2]
[352622941,1739203848214,-500.0,0.00012054,2]
[352622942,1739203848225,-808.36,0.00012054,2]
[352622943,1739203848236,-500.0,0.00012054,2]
[352622944,1739203848247,-500.0,0.00012054,2]
[352622945,1739203848259,-9369.98,0.00012054,2]
[352622946,1739203848269,-500.0,0.00012054,2]
[352622947,1739203848280,-500.0,0.00012054,2]
[352622948,1739203848291,-1295.06,0.00012054,2]
[352622949,1739203848305,-500.0,0.00012054,2]
[352622950,1739203848315,-3349.24,0.00012054,2]
[352622951,1739203848326,-500.0,0.00012054,2]
[352622952,1739203848338,-620.66,0.00012054,2]
[352622953,1739203848348,-500.0,0.00012054,2]
[352622954,1739203848358,-500.0,0.00012054,2]
[352622955,1739203848368,-500.0,0.00012054,2]
[352622956,1739203848379,-500.0,0.00012054,2]
[352622957,1739203848390,-500.0,0.00012054,2]
[352622958,1739203848401,-880.25,0.00012054,2]
[352622959,1739203848411,-818.75,0.00012054,2]
[352622960,1739203848421,-2389.8,0.00012054,2]
[352622961,1739203848431,-500.0,0.00012054,2]
[352622962,1739203848441,-500.0,0.00012054,2]
[352622963,1739203848452,-983.98,0.00012054,2]
[352622964,1739203848463,-500.0,0.00012054,2]
[352622965,1739203848474,-500.0,0.00012054,2]
[352622966,1739203848485,-500.0,0.00012054,2]
[352622967,1739203848496,-971.26,0.00012054,2]
[352622968,1739203848506,-3346.58,0.00012054,2]
[352622969,1739203848518,-519.1,0.00012054,2]
[352622970,1739203848530,-500.0,0.00012054,2]
[352622971,1739203848541,-500.0,0.00012054,2]
[352622972,1739203848552,-500.0,0.00012054,2]
[352622973,1739203848563,-500.0,0.00012054,2]
[352622974,1739203848575,-878.2,0.00012054,2]
[352622975,1739203848587,-151.0,0.00012091,2]
[352622976,1739203848599,-181.228071,0.00012091,2]
[352622977,1739203848610,-754.80410476,0.00012101,2]
[352622978,1739203848620,-273.84,0.00012191,2]
[352622979,1739203848631,-500.0,0.00012191,2]
[352622980,1739203848642,-500.0,0.00012191,2]
[352622981,1739203848653,-359.6,0.00012191,2]
[352622982,1739203848665,-500.0,0.00012191,2]
[352622983,1739203848675,-500.0,0.00012191,2]
[352622984,1739203848687,-500.0,0.00012191,2]
[352622985,1739203848698,-500.0,0.00012191,2]
[352622986,1739203848710,-500.0,0.00012191,2]
[352622987,1739203848721,-500.0,0.00012191,2]
[352622988,1739203848731,-500.0,0.00012191,2]
[352622989,1739203848742,-500.0,0.00012191,2]
[352622990,1739203848752,-500.0,0.00012191,2]
[352622991,1739203848764,-500.0,0.00012191,2]
[352622992,1739203848776,-500.0,0.00012191,2]
[352622993,1739203848787,-500.0,0.00012191,2]
[352622994,1739203848798,-316.65998487,0.00012191,2]
[352622995,1739203848808,-500.0,0.00012191,2]
[352622996,1739203848819,-304.76,0.00012191,2]
[352622997,1739203848830,-500.0,0.00012191,2]
[352622998,1739203848840,-808.36,0.00012191,2]
[352622999,1739203848852,-500.0,0.00012191,2]
[352623000,1739203848863,-500.0,0.00012191,2]
[352623001,1739203848874,-9369.98,0.00012191,2]
[352623002,1739203848884,-500.0,0.00012191,2]
[352623003,1739203848895,-500.0,0.00012191,2]
[352623004,1739203848906,-1295.06,0.00012191,2]
[352623005,1739203848918,-500.0,0.00012191,2]
[352623006,1739203848929,-3349.24,0.00012191,2]
[352623007,1739203848940,-500.0,0.00012191,2]
[352623008,1739203848952,-500.0,0.00012191,2]
[352623009,1739203848962,-500.0,0.00012191,2]
[352623010,1739203848974,-500.0,0.00012191,2]
[352623011,1739203848985,-500.0,0.00012191,2]
[352623012,1739203848996,-880.25,0.00012191,2]
[352623013,1739203849008,-818.75,0.00012191,2]
[352623014,1739203849021,-2389.8,0.00012191,2]
[352623015,1739203849032,-500.0,0.00012191,2]
[352623016,1739203849043,-500.0,0.00012191,2]
[352623017,1739203849055,-983.98,0.00012191,2]
[352623018,1739203849066,-500.0,0.00012191,2]
[352623019,1739203849078,-500.0,0.00012191,2]
[352623020,1739203849088,-971.26,0.00012191,2]
[352623021,1739203849099,-3346.58,0.00012191,2]
[352623022,1739203849111,-500.0,0.00012191,2]
[352623023,1739203849122,-509.69,0.00012191,2]
[352623024,1739203849133,-500.0,0.00012191,2]
[352623025,1739203849145,-500.0,0.00012191,2]
[352623026,1739203849155,-878.2,0.00012191,2]
[352623027,1739203849166,-151.0,0.000122,2]
[352623028,1739203849176,-754.80410476,0.00012201,2]
[352623029,1739203849188,-754.80410476,0.00012301,2]
[352623030,1739203849198,-500.0,0.00012328,2]
[352623031,1739203849208,-500.0,0.00012328,2]
[352623032,1739203849218,-500.0,0.00012328,2]
[352623033,1739203849229,-500.0,0.00012328,2]
[352623034,1739203849239,-500.0,0.00012328,2]
[352623035,1739203849250,-500.0,0.00012328,3]
[352623036,1739203849261,-500.0,0.00012328,3]
[352623037,1739203849274,-624.64,0.00012328,2]
[352623038,1739203849284,-500.0,0.00012328,2]
[352623039,1739203849295,-500.0,0.00012328,2]
[352623040,1739203849308,-500.0,0.00012328,2]
[352623041,1739203849318,-500.0,0.00012328,2]
[352623042,1739203849328,-500.0,0.00012328,2]
[352623043,1739203849339,-500.0,0.00012328,2]
[352623044,1739203849349,-500.0,0.00012328,2]
[352623045,1739203849359,-500.0,0.00012328,2]
[352623046,1739203849369,-808.36,0.00012328,2]
[352623047,1739203849379,-500.0,0.00012328,2]
[352623048,1739203849389,-500.0,0.00012328,2]
[352623049,1739203849399,-9369.98,0.00012328,2]
[352623050,1739203849409,-500.0,0.00012328,2]
[352623051,1739203849419,-500.0,0.00012328,2]
[352623052,1739203849429,-1295.06,0.00012328,2]
[352623053,1739203849439,-352.57,0.00012328,2]
[352623054,1739203849449,-3349.24,0.00012328,2]
[352623055,1739203849459,-500.0,0.00012328,2]
[352623056,1739203849469,-500.0,0.00012328,2]
[352623057,1739203849479,-500.0,0.00012328,2]
[352623058,1739203849489,-500.0,0.00012328,2]
[352623059,1739203849499,-500.0,0.00012328,2]
[352623060,1739203849508,-880.25,0.00012328,2]
[352623061,1739203849520,-818.75,0.00012328,2]
[352623062,1739203849531,-2389.8,0.00012328,2]
[352623063,1739203849540,-500.0,0.00012328,2]
[352623064,1739203849552,-500.0,0.00012328,2]
[352623065,1739203849562,-983.98,0.00012328,2]
[352623066,1739203849572,-500.0,0.00012328,2]
[352623067,1739203849581,-971.26,0.00012328,2]
[352623068,1739203849591,-3346.58,0.00012328,2]
[352623069,1739203849600,-500.0,0.00012328,2]
[352623070,1739203849610,-500.0,0.00012328,2]
[352623071,1739203849620,-500.0,0.00012328,2]
[352623072,1739203849629,-878.2,0.00012328,2]
[352623073,1739203849639,-151.0,0.000124,2]
[352623074,1739203849650,-754.80410476,0.00012401,2]
[352623075,1739203849660,-151.0,0.00012465,2]
[352623076,1739203849670,-500.0,0.00012465,2]
[352623077,1739203849679,-500.0,0.00012465,2]
[352623078,1739203849688,-500.0,0.00012465,2]
[352623079,1739203849697,-500.0,0.00012465,2]
[352623080,1739203849707,-500.0,0.00012465,2]
[352623081,1739203849718,-500.0,0.00012465,2]
[352623082,1739203849727,-539.06,0.00012465,2]
[352623083,1739203849736,-500.0,0.00012465,2]
[352623084,1739203849745,-500.0,0.00012465,2]
[352623085,1739203849755,-166.81,0.00012465,2]
[352623086,1739203849766,-500.0,0.00012465,2]
[352623087,1739203849776,-578.8,0.00012465,2]
[352623088,1739203849785,-500.0,0.00012465,2]
[352623089,1739203849794,-808.36,0.00012465,2]
[352623090,1739203849803,-500.0,0.00012465,2]
[352623091,1739203849813,-500.0,0.00012465,2]
[352623092,1739203849823,-9369.98,0.00012465,2]
[352623093,1739203849832,-500.0,0.00012465,2]
[352623094,1739203849841,-500.0,0.00012465,2]
[352623095,1739203849936,-1295.06,0.00012465,2]
[352623096,1739203849946,-3349.24,0.00012465,2]
[352623097,1739203849955,-500.0,0.00012465,2]
[352623098,1739203849965,-500.0,0.00012465,2]
[352623099,1739203849974,-500.0,0.00012465,2]
[352623100,1739203849983,-500.0,0.00012465,2]
[352623101,1739203849992,-500.0,0.00012465,2]
[352623102,1739203850002,-880.25,0.00012465,2]
[352623103,1739203850011,-818.75,0.00012465,2]
[352623104,1739203850022,-2389.8,0.00012465,2]
[352623105,1739203850031,-500.0,0.00012465,2]
[352623106,1739203850041,-500.0,0.00012465,2]
[352623107,1739203850051,-983.98,0.00012465,2]
[352623108,1739203850060,-500.0,0.00012465,2]
[352623109,1739203850069,-971.26,0.00012465,2]
[352623110,1739203850079,-3346.58,0.00012465,2]
[352623111,1739203850088,-500.0,0.00012465,2]
[352623112,1739203850097,-500.0,0.00012465,2]
[352623113,1739203850107,-500.0,0.00012465,2]
[352623114,1739203850117,-878.2,0.00012465,2]
[352623115,1739203850127,-754.80410476,0.00012501,2]
[352623116,1739203850136,-182.156,0.00012537,2]
[352623117,1739203850146,-151.0,0.000126,2]
[352623118,1739203850155,-754.80410476,0.00012601,2]
[352623119,1739203850164,-500.0,0.00012602,2]
[352623120,1739203850174,-500.0,0.00012602,2]
[352623121,1739203850183,-500.0,0.00012602,2]
[352623122,1739203850193,-500.0,0.00012602,2]
[352623123,1739203850203,-500.0,0.00012602,2]
[352623124,1739203850214,-500.0,0.00012602,2]
[352623125,1739203850224,-500.0,0.00012602,2]
[352623126,1739203850234,-500.0,0.00012602,2]
[352623127,1739203850244,-500.0,0.00012602,2]
[352623128,1739203850254,-500.0,0.00012602,2]
[352623129,1739203850265,-808.36,0.00012602,2]
[352623130,1739203850275,-500.0,0.00012602,2]
[352623131,1739203850284,-500.0,0.00012602,2]
[352623132,1739203850294,-9369.98,0.00012602,2]
[352623133,1739203850306,-500.0,0.00012602,2]
[352623134,1739203850316,-500.0,0.00012602,2]
[352623135,1739203850326,-1295.06,0.00012602,2]
[352623136,1739203850335,-3349.24,0.00012602,2]
[352623137,1739203850346,-541.91,0.00012602,2]
[352623138,1739203850356,-500.0,0.00012602,2]
[352623139,1739203850365,-500.0,0.00012602,2]
[352623140,1739203850376,-500.0,0.00012602,2]
[352623141,1739203850385,-500.0,0.00012602,2]
[352623142,1739203850395,-880.25,0.00012602,2]
[352623143,1739203850406,-818.75,0.00012602,2]
[352623144,1739203850415,-2389.8,0.00012602,2]
[352623145,1739203850426,-500.0,0.00012602,2]
[352623146,1739203850436,-500.0,0.00012602,2]
[352623147,1739203850445,-983.98,0.00012602,2]
[352623148,1739203850455,-500.0,0.00012602,2]
[352623149,1739203850464,-971.26,0.00012602,2]
[352623150,1739203850474,-3346.58,0.00012602,2]
[352623151,1739203850484,-500.0,0.00012602,2]
[352623152,1739203850493,-500.0,0.00012602,2]
[352623153,1739203850502,-500.0,0.00012602,2]
[352623154,1739203850514,-878.2,0.00012602,2]
[352623155,1739203850523,-754.80410476,0.00012701,2]
[352623156,1739203850532,-239.475804,0.00012739,2]
[352623157,1739203850541,-499.6,0.00012739,2]
[352623158,1739203850550,-500.0,0.00012739,2]
[352623159,1739203850559,-500.0,0.00012739,2]
[352623160,1739203850568,-500.0,0.00012739,2]
[352623161,1739203850578,-423.05213026,0.00012739,2]
[352623162,1739203850587,-500.0,0.00012739,2]
[352623163,1739203850596,-500.0,0.00012739,2]
[352623164,1739203850605,-500.0,0.00012739,2]
[352623165,1739203850615,-500.0,0.00012739,2]
[352623166,1739203850624,-500.0,0.00012739,2]
[352623167,1739203850634,-808.36,0.00012739,2]
[352623168,1739203850643,-500.0,0.00012739,2]
[352623169,1739203850652,-500.0,0.00012739,2]
[352623170,1739203850661,-9369.98,0.00012739,2]
[352623171,1739203850671,-500.0,0.00012739,2]
[352623172,1739203850680,-500.0,0.00012739,2]
[352623173,1739203850689,-1295.06,0.00012739,2]
[352623174,1739203850698,-3349.24,0.00012739,2]
[352623175,1739203850708,-500.0,0.00012739,2]
[352623176,1739203850717,-500.0,0.00012739,2]
[352623177,1739203850726,-394.72,0.00012739,2]
[352623178,1739203850735,-500.0,0.00012739,2]
[352623179,1739203850745,-880.25,0.00012739,2]
[352623180,1739203850754,-818.75,0.00012739,2]
[352623181,1739203850763,-2389.8,0.00012739,2]
[352623182,1739203850772,-500.0,0.00012739,2]
[352623183,1739203850782,-500.0,0.00012739,2]
[352623184,1739203850792,-983.98,0.00012739,2]
[352623185,1739203850801,-500.0,0.00012739,2]
[352623186,1739203850810,-971.26,0.00012739,2]
[352623187,1739203850820,-3346.58,0.00012739,2]
[352623188,1739203850829,-500.0,0.00012739,2]
[352623189,1739203850838,-500.0,0.00012739,2]
[352623190,1739203850847,-500.0,0.00012739,2]
[352623191,1739203850856,-878.2,0.00012739,2]
[352623192,1739203850866,-151.0,0.000128,2]
[352623193,1739203850875,-754.80410476,0.00012801,2]
[352623194,1739203850884,-500.0,0.00012876,2]
[352623195,1739203850893,-500.0,0.00012876,2]
[352623196,1739203850902,-500.0,0.00012876,2]
[352623197,1739203850911,-500.0,0.00012876,2]
[352623198,1739203850921,-500.0,0.00012876,2]
[352623199,1739203850930,-500.0,0.00012876,2]
[352623200,1739203850939,-500.0,0.00012876,2]
[352623201,1739203850949,-500.0,0.00012876,2]
[352623202,1739203850959,-808.36,0.00012876,2]
[352623203,1739203850968,-500.0,0.00012876,2]
[352623204,1739203850977,-500.0,0.00012876,2]
[352623205,1739203850986,-9369.98,0.00012876,2]
[352623206,1739203850995,-500.0,0.00012876,2]
[352623207,1739203851005,-500.0,0.00012876,2]
[352623208,1739203851016,-1295.06,0.00012876,2]
[352623209,1739203851026,-3349.24,0.00012876,2]
[352623210,1739203851035,-500.0,0.00012876,2]
[352623211,1739203851044,-500.0,0.00012876,2]
[352623212,1739203851053,-500.0,0.00012876,2]
[352623213,1739203851062,-880.25,0.00012876,2]
[352623214,1739203851071,-818.75,0.00012876,2]
[352623215,1739203851080,-2389.8,0.00012876,2]
[352623216,1739203851089,-500.0,0.00012876,2]
[352623217,1739203851098,-500.0,0.00012876,2]
[352623218,1739203851107,-983.98,0.00012876,2]
[352623219,1739203851117,-379.66,0.00012876,2]
[352623220,1739203851126,-971.26,0.00012876,2]
[352623221,1739203851135,-3346.58,0.00012876,2]
[352623222,1739203851144,-500.0,0.00012876,2]
[352623223,1739203851153,-500.0,0.00012876,2]
[352623224,1739203851162,-500.0,0.00012876,2]
[352623225,1739203851171,-878.2,0.00012876,2]
[352623226,1739203851180,-176.57946952,0.000129,2]
[352623227,1739203851189,-754.80410476,0.00012901,2]
[352623228,1739203851199,-1500.0,0.00012961,2]
[352623229,1739203851208,-413.114,0.00012971,2]
[352623230,1739203851217,-754.80410476,0.00013001,2]
[352623231,1739203851226,-500.0,0.00013013,2]
[352623232,1739203851235,-500.0,0.00013013,2]
[352623233,1739203851244,-500.0,0.00013013,2]
[352623234,1739203851253,-500.0,0.00013013,2]
[352623235,1739203851265,-500.0,0.00013013,2]
[352623236,1739203851274,-500.0,0.00013013,2]
[352623237,1739203851283,-500.0,0.00013013,2]
[352623238,1739203851292,-500.0,0.00013013,2]
[352623239,1739203851304,-808.36,0.00013013,2]
[352623240,1739203851313,-500.0,0.00013013,2]
[352623241,1739203851323,-500.0,0.00013013,2]
[352623242,1739203851332,-9369.98,0.00013013,2]
[352623243,1739203851341,-500.0,0.00013013,2]
[352623244,1739203851351,-500.0,0.00013013,2]
[352623245,1739203851360,-1295.06,0.00013013,2]
[352623246,1739203851369,-3349.24,0.00013013,2]
[352623247,1739203851379,-500.0,0.00013013,2]
[352623248,1739203851388,-500.0,0.00013013,2]
[352623249,1739203851398,-500.0,0.00013013,2]
[352623250,1739203851407,-880.25,0.00013013,2]
[352623251,1739203851417,-818.75,0.00013013,2]
[352623252,1739203851426,-2389.8,0.00013013,2]
[352623253,1739203851436,-500.0,0.00013013,2]
[352623254,1739203851446,-500.0,0.00013013,2]
[352623255,1739203851456,-983.98,0.00013013,2]
[352623256,1739203851465,-971.26,0.00013013,2]
[352623257,1739203851475,-3346.58,0.00013013,2]
[352623258,1739203851484,-500.0,0.00013013,2]
[352623259,1739203851493,-500.0,0.00013013,2]
[352623260,1739203851502,-500.0,0.00013013,2]
[352623261,1739203851514,-878.2,0.00013013,2]
[352623262,1739203851523,-1500.0,0.00013041,2]
[352623263,1739203851532,-151.0,0.000131,2]
[352623264,1739203851542,-754.80410476,0.00013101,2]
[352623265,1739203851551,-500.0,0.0001315,2]
[352623266,1739203851560,-500.0,0.0001315,2]
[352623267,1739203851570,-500.0,0.0001315,2]
[352623268,1739203851579,-500.0,0.0001315,2]
[352623269,1739203851589,-500.0,0.0001315,2]
[352623270,1739203851598,-500.0,0.0001315,2]
[352623271,1739203851608,-500.0,0.0001315,2]
[352623272,1739203851618,-500.0,0.0001315,2]
[352623273,1739203851628,-808.36,0.0001315,2]
[352623274,1739203851638,-500.0,0.0001315,2]
[352623275,1739203851647,-500.0,0.0001315,2]
[352623276,1739203851657,-9369.98,0.0001315,2]
[352623277,1739203851666,-500.0,0.0001315,2]
[352623278,1739203851676,-500.0,0.0001315,2]
[352623279,1739203851685,-1295.06,0.0001315,2]
[352623280,1739203851695,-3349.24,0.0001315,2]
[352623281,1739203851714,-500.0,0.0001315,2]
[352623282,1739203851723,-500.0,0.0001315,2]
[352623283,1739203851733,-500.0,0.0001315,2]
[352623284,1739203851743,-880.25,0.0001315,2]